[Event "ChessKid Cup Div-II 2023"]
[Site "Online"]
[Date "2023.05.23"]
[Round "2.1"]
[White "Nguyen, Ngoc Truong Son"]
[Black "Le, Quang Liem"]
[Result "1-0"]
[ECO "D02"]
[WhiteElo "2645"]
[BlackElo "2728"]
[Annotator "TA"]
[PlyCount "83"]
[EventDate "2023.05.21"]
[EventType "k.o."]
[EventCountry "NET"]
[SourceTitle "playchess.com"]
[Source "ChessBase"]
[SourceQuality "1"]
[TimeControl "900+3"]

{[%evp 9,83,0,23,16,18,0,5,0,0,0,0,0,0,-7,-7,-14,-4,-14,0,-7,-6,-11,-13,-9,-10,-7,0,0,0,0,0,0,0,0,0,-7,-2,-4,-2,-5,0,-8,-9,-20,0,0,0,0,0,-14,0,0,0,0,0,0,0,0,0,0,0,0,0,-4,245,245,286,279,271,245,222,222,12849,5539,1107,991]} 1. d4 {[%emt 0:00:08]} d5 {[%emt 0:00:05]} 2. Nf3 {[%emt 0:00:03]} Nf6 {[%emt 0:00:02]} 3. Bf4 {[%emt 0:00:02]} c5 {[%emt 0:00:05]} 4. e3 {[%emt 0:00:01]} e6 {[%emt 0:00:18]} 5. c3 {[%emt 0:00:20]} Qb6 {[%emt 0:00:07]} 6. Qc2 {[%emt 0:00:21] D02: 1 d4 d5 2 Nf3 sidelines, including 2...Nf6 3 g3 and 2...Nf6 3 Bf4.} Bd6 {[%emt 0:00:04]} 7. Bg3 {[%emt 0:01:04]} Nbd7 {[%emt 0:00:23]} 8. Nbd2 {[%emt 0:00:11] The position is equal.} O-O {[%emt 0:00:06]} 9. Bd3 {[%emt 0:01:47]} h6 {[%emt 0:01:04]} 10. O-O {[%emt 0:00:40] [#]} Qc7 $146 {[%emt 0:00:08]} ({Predecessor:} 10... Bxg3 11. hxg3 Re8 12. e4 dxe4 13. Nxe4 Nxe4 14. Bxe4 Nf6 15. dxc5 Qxc5 {½-½ Winter,I-Wagner Michel,A DDR Women-ch20 1971 (3)}) 11. e4 {[%emt 0:00:59] Black must now prevent e5.} Bxg3 {[%emt 0:00:25]} 12. hxg3 {[%emt 0:00:03]} cxd4 {[%emt 0:00:03]} 13. Nxd4 {[%emt 0:01:04]} Nc5 {[%emt 0:00:13]} 14. Rfe1 {[%emt 0:00:28]} dxe4 {[%emt 0:01:50]} 15. Nxe4 {[%emt 0:00:09]} Ncxe4 {[%emt 0:00:02]} 16. Bxe4 {[%emt 0:00:01]} Bd7 {[%emt 0:00:01]} 17. Bf3 {[%emt 0:01:41]} e5 {[%emt 0:00:15]} 18. Nf5 {[%emt 0:00:11]} Rfe8 {[%emt 0:00:03][%cal Oe5e4]} 19. Ne3 {[%emt 0:00:05]} Be6 {[%emt 0:00:40]} 20. Rad1 {[%emt 0:00:22]} Rad8 {[%emt 0:00:06]} 21. Rxd8 {[%emt 0:00:18]} Rxd8 {[%emt 0:00:01]} 22. Rd1 {[%emt 0:00:08]} Rxd1+ {[%emt 0:00:19]} ({Don't take} 22... Bxa2 23. Rxd8+ Qxd8 24. b3 $16) 23. Qxd1 {[%emt 0:00:07]} b6 {[%emt 0:00:02]} 24. a3 {[%emt 0:00:17]} Kf8 {[%emt 0:01:32]} 25. Qa4 {[%emt 0:00:34]} g6 {[%emt 0:00:09]} 26. c4 {[%emt 0:00:33]} a5 {[%emt 0:00:38]} 27. b4 {[%emt 0:00:42]} axb4 {[%emt 0:00:48]} 28. Qxb4+ {[%emt 0:00:29]} Kg7 {[%emt 0:00:06]} 29. a4 {[%emt 0:00:05]} e4 {[%emt 0:00:23]} 30. Be2 {[%emt 0:00:11]} Nd7 {[%emt 0:00:01]} 31. Nd5 {[%emt 0:01:08]} Bxd5 {[%emt 0:02:15]} 32. cxd5 $11 {[%emt 0:00:02][%mdl 4096] Endgame KQB-KQN} Qe5 {[%emt 0:00:15]} 33. Qb5 {[%emt 0:00:05]} Nf6 {[%emt 0:01:22]} 34. Qxb6 {[%emt 0:00:28]} Qa1+ {[%emt 0:00:02]} 35. Kh2 {[%emt 0:00:14] Qb4 would be deadly.} Qxa4 {[%emt 0:00:02]} 36. d6 {[%emt 0:00:39][%cal Bd5d6,Bd6d7][%mdl 32]} Qa2 $2 {[%emt 0:00:10] [#] Repels Qb2. Black cannot hold the game after this.} (36... Qa1 $11 {and Black stays safe.}) 37. Qd4 $1 $18 {[%emt 0:00:17] aiming for d7.} Qa8 {[%emt 0:02:29]} (37... Qxe2 $2 38. d7 $18) (37... Qe6 38. Bb5) 38. d7 {[%emt 0:00:08]} Qd8 {[%emt 0:00:01]} 39. Bb5 {[%emt 0:00:03]} Kg8 {[%emt 0:00:09]} 40. Kg1 {[%emt 0:00:11]} Nh7 $2 {[%emt 0:00:15]} (40... Kg7 41. Qc3 Qb6) 41. Qxe4 {[%emt 0:00:07]} (41. Qc3 $142 Nf8 42. Qc8) 41... Nf6 {[%emt 0:00:01]} 42. Qe8+ {[%emt 0:00:04] Weighted Error Value: White=0.04 (flawless) /Black=0.16 (very precise)} 1-0

[Event "ChessKid Cup Div-II 2023"]
[Site "Online"]
[Date "2023.05.23"]
[Round "2.2"]
[White "Le, Quang Liem"]
[Black "Nguyen, Ngoc Truong Son"]
[Result "0-1"]
[ECO "D37"]
[WhiteElo "2728"]
[BlackElo "2645"]
[Annotator "TA"]
[PlyCount "150"]
[EventDate "2023.05.21"]
[EventType "k.o."]
[EventCountry "NET"]
[SourceTitle "playchess.com"]
[Source "ChessBase"]
[SourceQuality "1"]
[TimeControl "900+3"]

{[%evp 9,150,20,18,6,20,23,18,8,22,8,20,8,5,4,11,8,20,5,10,0,0,0,5,0,0,0,0,-18,-14,-14,20,0,10,-9,-18,-18,-21,-14,-17,-20,0,0,0,0,0,0,0,-11,0,0,0,0,0,0,27,20,27,39,45,0,0,0,0,0,0,0,0,0,0,0,110,0,47,47,141,97,97,81,59,16,76,0,18,19,19,19,123,110,225,0,0,0,32,0,110,0,67,34,98,14,24,0,97,0,0,0,0,0,0,-46,-46,-218,-218,-214,-107,-143,0,0,0,-400,0,-29978,-29979,-29978,-29979,-29984,-29985,-29980,-29981,-29980,-29981,-29967,-5093,-29984,-29985,-29987,-29987,-29987,-29988,-29988,-29989,-29994,-29995]} 1. d4 {[%emt 0:00:03]} Nf6 {[%emt 0:00:14]} 2. Nf3 {[%emt 0:00:02]} d5 {[%emt 0:00:03]} 3. c4 {[%emt 0:00:02]} e6 {[%emt 0:00:03]} 4. Nc3 {[%emt 0:00:02]} a6 {[%emt 0:00:05]} 5. c5 {[%emt 0:00:11]} b6 {[%emt 0:00:11]} 6. cxb6 {[%emt 0:00:01] D37: Queen's Gambit Declined: 5 Bf4.} cxb6 {[%emt 0:00:02]} 7. Bf4 {[%emt 0:00:01]} Bd6 {[%emt 0:00:17]} 8. e3 {[%emt 0:00:01] The position is equal. 8.e3 is better than 8.Bxd6.} Bb7 {[%emt 0:01:32]} 9. Bd3 {[%emt 0:00:03]} Nc6 {[%emt 0:00:35]} 10. O-O {[%emt 0:00:17]} Bxf4 {[%emt 0:01:33]} 11. exf4 {[%emt 0:00:00]} O-O {[%emt 0:00:01]} 12. Re1 {[%emt 0:00:08]} Qd6 {[%emt 0:00:10]} 13. g3 {[%emt 0:00:19] [#]} g6 $146 {[%emt 0:01:47]} ({Predecessor:} 13... Rac8 14. Rc1 Na5 15. Qe2 b5 16. Red1 Nc4 17. Ne5 Rc7 18. b3 Na3 19. Nb1 Rfc8 {1-0 Zatonskih,A (2422)-Foisor,S (2205) USA-ch (Women) 2021 (9)}) 14. Rc1 {[%emt 0:00:16]} Rac8 {[%emt 0:00:09]} 15. Bb1 {[%emt 0:00:30]} Rc7 {[%emt 0:00:29]} 16. Na4 {[%emt 0:01:01]} Na5 {[%emt 0:02:14]} 17. Qe2 {[%emt 0:00:34]} Rfc8 {[%emt 0:00:30]} 18. Rxc7 {[%emt 0:00:05]} Rxc7 {[%emt 0:00:02]} 19. Qe5 {[%emt 0:00:14]} Qxe5 {[%emt 0:00:14]} (19... Qd8 $5 {[%cal Rf6e4]}) 20. Nxe5 {[%emt 0:00:00]} Nc4 {[%emt 0:02:03]} 21. Rc1 {[%emt 0:01:53] And now b3 would win.} (21. b3 $5 {[%cal Rb3c4]} Nxe5 22. fxe5 $11) 21... b5 {[%emt 0:00:04]} 22. b3 {[%emt 0:00:01] Hoping for Nb6.} bxa4 {[%emt 0:00:07]} 23. bxc4 {[%emt 0:00:01]} dxc4 {[%emt 0:00:01]} 24. Rxc4 {[%emt 0:00:02]} Rxc4 {[%emt 0:00:19]} 25. Nxc4 $11 {[%emt 0:00:00][%mdl 4096] Endgame KBN-KBN} Be4 {[%emt 0:00:05]} 26. Nd2 {[%emt 0:00:09]} Bxb1 {[%emt 0:00:13]} 27. Nxb1 {[%emt 0:00:00] KN-KN} Nd5 {[%emt 0:00:12]} 28. Kf1 {[%emt 0:01:05]} Kf8 {[%emt 0:00:35]} 29. a3 {[%emt 0:01:48]} Ke7 {[%emt 0:00:03]} 30. Ke2 {[%emt 0:00:01]} Kd6 {[%emt 0:00:16]} 31. Kd3 {[%emt 0:00:04]} Kc6 {[%emt 0:01:07]} 32. Nc3 {[%emt 0:00:39]} Nb6 {[%emt 0:00:30]} 33. Ne4 {[%emt 0:00:24]} h6 {[%emt 0:00:06] Prevents Ng5} 34. h4 {[%emt 0:00:13]} a5 {[%emt 0:00:09]} 35. Nd2 {[%emt 0:01:12]} Kb5 {[%emt 0:00:15]} 36. Nb1 {[%emt 0:00:47]} Kc6 {[%emt 0:00:05]} 37. Nc3 {[%emt 0:00:07]} Kd6 {[%emt 0:00:08]} 38. Nd1 {[%emt 0:00:21]} Kc6 {[%emt 0:00:08]} 39. Ne3 {[%emt 0:00:04]} Kb5 {[%emt 0:00:07]} (39... h5 $1 $11 {keeps the balance.}) 40. g4 {[%emt 0:00:16]} (40. Ng4 $1 $16 {[%cal Rg4h6]}) 40... h5 {[%emt 0:00:03]} (40... f5 $1 $11 {was preferrable.}) 41. g5 $1 $14 {[%emt 0:00:29]} Kc6 {[%emt 0:00:11]} (41... Nd5 $1 $14) 42. Nc4 $1 $16 {[%emt 0:00:12]} Nd5 {[%emt 0:00:02]} 43. Ke4 {[%emt 0:00:10] Strongly threatening Ne5+.} Kd7 {[%emt 0:00:04]} 44. Nxa5 {[%emt 0:00:11]} Nc3+ {[%emt 0:00:02]} (44... Nb6 $11 {remains equal.}) 45. Kd3 {[%emt 0:00:07]} (45. Ke5 $16) 45... Nb5 {[%emt 0:00:02]} (45... Nd5 $5 {[%cal Rd5f4]}) 46. Nc4 {[%emt 0:00:01] aiming for Ke4.} Ke7 {[%emt 0:00:02]} 47. Ke4 {[%emt 0:00:14]} Nc3+ {[%emt 0:00:07]} (47... f6 $1 $11) 48. Ke5 {[%emt 0:00:05]} Nd5 {[%emt 0:00:01] Against Nb6} (48... Kf8 $16 49. f5 gxf5) 49. Nd6 $2 {[%emt 0:00:59]} (49. Ne3 $1 $18 {[%cal Re3d5]} f6+ 50. gxf6+ Nxf6 51. d5 Nd7+ 52. Kd4) 49... Nb6 $11 {[%emt 0:00:04] White must now prevent ...Nd7+.} 50. Nb5 {[%emt 0:00:11]} Nc4+ {[%emt 0:00:01]} 51. Ke4 {[%emt 0:00:01]} Kd7 {[%emt 0:00:01]} (51... Nb6 $11) 52. Kd3 {[%emt 0:00:03]} (52. d5 $1 $16) 52... Nb6 {[%emt 0:00:03]} (52... Nb2+ $1 $11 53. Ke4 Nd1) 53. Nc3 $14 {[%emt 0:00:05][%cal Of4f5]} Kc6 {[%emt 0:00:02]} ({Black should try} 53... Kd6 $14) 54. Ke4 {[%emt 0:00:01]} (54. Nd1 $1 $16) 54... Kd6 $11 {[%emt 0:00:02]} 55. Kd3 {[%emt 0:00:10]} (55. Ke3 $11) 55... Kc6 $1 $16 {[%emt 0:00:01]} 56. Ne2 {[%emt 0:00:16]} ({White should play} 56. Nd1 $1 $16) 56... Kd5 $11 {[%emt 0:00:07]} 57. f5 {[%emt 0:00:14]} exf5 {[%emt 0:00:03]} 58. Nf4+ {[%emt 0:00:03]} Kc6 $1 {[%emt 0:00:02]} 59. Kc3 {[%emt 0:00:01]} (59. Ne2 $11) 59... Kb5 $1 $15 {[%emt 0:00:01]} 60. f3 $2 {[%emt 0:00:29]} ({Better is} 60. d5 $15 Kc5 61. d6) 60... Nc4 $19 {[%emt 0:00:04]} 61. Nd3 {[%emt 0:00:01]} Nxa3 {[%emt 0:00:02]} 62. Ne5 {[%emt 0:00:01] [#] Inhibits Nc4.} Nb1+ {[%emt 0:00:02]} (62... Ka5 $1 $17 {Threatens to win with ...Nb5+.} 63. d5 Nb5+ 64. Kc4 Kb6 65. Nxf7 a3) 63. Kc2 $11 {[%emt 0:00:22]} Na3+ {[%emt 0:00:00]} 64. Kd3 $2 {[%emt 0:00:01][%mdl 8192] [#]} (64. Kc3 $11) 64... Kb4 $2 {[%emt 0:00:05]} (64... Kb6 $1 $19 65. Nd7+ Ka5) 65. Nxf7 $2 {[%emt 0:00:05][%mdl 8192]} (65. Nc6+ $11 Kb5 66. Ne5) 65... Nb5 {[%emt 0:00:05]} 66. Ne5 {[%emt 0:00:15]} a3 {[%emt 0:00:01]} 67. Kc2 {[%emt 0:00:28]} Nxd4+ {[%emt 0:00:02]} 68. Kd3 {[%emt 0:00:07]} a2 {[%emt 0:00:04]} 69. Kxd4 {[%emt 0:00:01]} a1=Q+ {[%emt 0:00:01]} (69... a1=B+ $2 70. Kd5 Bc3 71. Nxg6 $18) 70. Kd5 {[%emt 0:00:00]} Qh1 {[%emt 0:00:10]} 71. Nxg6 {[%emt 0:00:11]} Qxf3+ {[%emt 0:00:01] Black mates.} 72. Ke5 {[%emt 0:00:02]} Qe4+ {[%emt 0:00:01]} 73. Kf6 {[%emt 0:00:01]} f4 {[%emt 0:00:01][%cal Bf5f4,Bf4f3,Bf3f2][%mdl 32]} 74. Ne5 {[%emt 0:00:03]} f3 {[%emt 0:00:03]} 75. g6 {[%emt 0:00:01]} f2 {[%emt 0:00:01] Never resign too early!   Weighted Error Value: White=0.24 (precise) /Black=0.23 (precise)} 0-1

[Event "ChessKid Cup Div-II 2023"]
[Site "Online"]
[Date "2023.05.23"]
[Round "2.2"]
[White "Alekseenko, Kirill"]
[Black "Sadhwani, Raunak"]
[Result "0-1"]
[ECO "B48"]
[WhiteElo "2686"]
[BlackElo "2627"]
[Annotator "TA"]
[PlyCount "58"]
[EventDate "2023.05.21"]
[EventType "k.o."]
[EventCountry "NET"]
[SourceTitle "playchess.com"]
[Source "ChessBase"]
[SourceQuality "1"]
[TimeControl "900+3"]

{[%evp 14,58,32,25,35,14,18,15,13,10,24,0,7,8,19,23,12,0,0,-8,0,-21,-18,-32,-27,-29,-30,-26,-11,-74,-66,-267,-188,-230,-237,-236,-235,-279,-279,-281,-279,-306,-306,-306,-306,-762,-754]} 1. e4 {[%emt 0:00:08]} c5 {[%emt 0:00:10]} 2. Nf3 {[%emt 0:00:07]} e6 {[%emt 0:00:01]} 3. d4 {[%emt 0:00:06]} cxd4 {[%emt 0:00:01]} 4. Nxd4 {[%emt 0:00:01]} Nc6 {[%emt 0:00:02]} 5. Nc3 {[%emt 0:00:08]} a6 {[%emt 0:00:00]} 6. a3 {[%emt 0:01:24]} Qc7 {[%emt 0:00:07]} 7. Be3 {[%emt 0:00:13]} b5 {[%emt 0:00:15]} 8. Nxc6 {[%emt 0:00:19]} Qxc6 {[%emt 0:00:01] B48: Sicilian: Taimanov: 5 Nc3 Qc7 6 Be3 a6 without Be2.} 9. Qd4 {[%emt 0:00:17]} Bb7 {[%emt 0:00:05]} 10. Be2 {[%emt 0:00:10]} Rc8 {[%emt 0:00:11][%cal Ba8c8,Bc8c5,Bc5e5][%mdl 32] The position is equal.} 11. O-O {[%emt 0:01:44][%cal Be1g1,Bg1f2,Bf2e3,Be3d4][%mdl 32]} Nf6 {[%emt 0:00:15][%cal Rf6e4]} 12. f3 {[%emt 0:00:18]} Bc5 {[%emt 0:00:05]} 13. Qxc5 {[%emt 0:00:17]} Qxc5 {[%emt 0:00:00]} 14. Bxc5 {[%emt 0:00:01]} Rxc5 {[%emt 0:00:00] [#]} 15. Rad1 $146 {[%emt 0:00:04]} ({Predecessor:} 15. Rfd1 d5 16. exd5 Nxd5 17. Nxd5 Bxd5 18. c3 Ke7 19. a4 Bb3 20. Rd4 Bxa4 21. b3 Bxb3 22. Rxa6 {0-1 Zenuni,H (1971)-Kelmendi,A (2093) Pristina op 2019 (4)}) 15... Ke7 {[%emt 0:00:03]} 16. Kf2 {[%emt 0:00:39]} g5 {[%emt 0:00:08][%cal Bg7g5,Bg5g4][%mdl 32]} (16... Rhc8 {simplifies} 17. Rh1 d5 18. exd5 Bxd5 19. Bd3 g5) 17. Ke3 {[%emt 0:00:05]} Rhc8 {[%emt 0:00:09]} 18. Rd2 {[%emt 0:01:03]} Re5 {[%emt 0:00:51]} (18... d5 {simplifies} 19. exd5 Bxd5 20. Re1 h5) 19. Kd4 {[%emt 0:00:18]} d6 {[%emt 0:00:07]} 20. Bd3 {[%emt 0:00:46]} Rec5 {[%emt 0:00:27]} 21. Ne2 {[%emt 0:00:31]} (21. Ke3 $11) 21... g4 $17 {[%emt 0:00:26] Black is more active.} 22. f4 $2 {[%emt 0:00:26] [#] White does not recover from this.} (22. Ke3 $15) 22... Bxe4 $1 {[%emt 0:00:12][%mdl 576] Deflection} 23. Nc3 {[%emt 0:00:37]} (23. Bxe4 Rc4+) 23... Bxd3 {[%emt 0:00:12]} 24. cxd3 {[%emt 0:00:02]} a5 {[%emt 0:00:15][%cal Ba6a5,Ba5b4,Bb4b3][%mdl 32]} 25. g3 {[%emt 0:00:48]} b4 {[%emt 0:00:11]} 26. axb4 {[%emt 0:00:02]} axb4 {[%emt 0:00:00]} 27. Ne4 {[%emt 0:00:00]} Rc2 {[%emt 0:00:34]} 28. Rff2 {[%emt 0:00:34]} b3 {[%emt 0:00:01]} 29. Nc3 $2 {[%emt 0:00:06] [#]} (29. Nxf6 Kxf6 30. Rg2) 29... R8xc3 $1 {[%emt 0:00:02][%mdl 576] Promotion.   Weighted Error Value: White=0.55/Black=0.08 (flawless)} 0-1

[Event "ChessKid Cup Div-II 2023"]
[Site "Online"]
[Date "2023.05.23"]
[Round "2.2"]
[White "Fedoseev, Vladimir"]
[Black "Anton Guijarro, David"]
[Result "1-0"]
[ECO "D35"]
[WhiteElo "2680"]
[BlackElo "2690"]
[Annotator "TA"]
[PlyCount "139"]
[EventDate "2023.05.21"]
[EventType "k.o."]
[EventCountry "NET"]
[SourceTitle "playchess.com"]
[Source "ChessBase"]
[SourceQuality "1"]
[TimeControl "900+3"]

{[%evp 13,139,12,26,31,37,34,33,34,33,33,38,28,31,38,31,31,24,27,33,31,33,33,27,0,64,35,73,73,73,73,73,73,73,73,68,68,70,48,51,37,22,18,51,64,56,14,48,57,83,83,79,68,68,33,68,68,68,68,73,68,73,68,68,68,73,68,68,68,68,68,68,68,74,68,68,68,83,62,83,94,270,262,251,145,145,138,185,169,190,177,224,222,203,91,92,70,131,136,143,127,135,128,126,131,132,118,129,103,102,95,155,130,167,167,142,154,166,166,162,162,283,289,479,491,470,439,477,468]} 1. d4 {[%emt 0:00:05]} d5 {[%emt 0:00:06]} 2. c4 {[%emt 0:00:04]} e6 {[%emt 0:00:01]} 3. Nc3 {[%emt 0:00:03]} Nf6 {[%emt 0:00:03]} 4. cxd5 {[%emt 0:00:01]} exd5 {[%emt 0:00:01]} 5. Bg5 {[%emt 0:00:02]} c6 {[%emt 0:00:02]} 6. e3 {[%emt 0:00:02]} h6 {[%emt 0:00:02]} 7. Bh4 {[%emt 0:00:01]} Bf5 {[%emt 0:00:01]} 8. Qf3 {[%emt 0:00:01] D35: Queen's Gambit Declined: Exchange Variation.} Bh7 {[%emt 0:00:02] 8...Bh7 is the modern continuation.} 9. Bxf6 {[%emt 0:00:04]} Qxf6 {[%emt 0:00:01]} 10. Qxf6 {[%emt 0:00:01] White is slightly better.} gxf6 {[%emt 0:00:00]} 11. Nf3 {[%emt 0:01:09][%cal Bg1f3,Bf3h4,Bh4f5][%mdl 32]} Nd7 {[%emt 0:00:07]} 12. O-O-O {[%emt 0:00:12][%cal Ba1d1,Bd1d3,Bd3b3][%mdl 32] [#]} Nb6 $146 {[%emt 0:00:38]} ({Predecessor:} 12... Bb4 13. Ne2 Bd6 14. Nh4 f5 15. Nf4 Nf6 16. f3 Rg8 17. Bd3 Kd7 18. g3 Rg5 19. Nfg2 {½-½ Rodrigues,A (2085)-Willmann,B (2242) RA-2015-0-00392}) 13. Nh4 {[%emt 0:00:18]} Kd7 {[%emt 0:00:29]} 14. Bd3 {[%emt 0:00:44]} Bxd3 {[%emt 0:00:07]} 15. Rxd3 {[%emt 0:00:03]} Bb4 {[%emt 0:00:08]} 16. Ne2 {[%emt 0:00:38]} h5 {[%emt 0:00:32]} 17. Rb3 {[%emt 0:00:45]} Bd6 {[%emt 0:00:15]} 18. Nf5 {[%emt 0:00:29]} Bf8 {[%emt 0:01:15]} (18... h4 $11) 19. Nf4 {[%emt 0:00:42] A dynamic duo of knights.} Kc7 {[%emt 0:01:02]} 20. h4 {[%emt 0:00:09] White has more active pieces. The black rooks are badly placed.} Bd6 {[%emt 0:00:09]} 21. Nxd6 {[%emt 0:01:11]} Kxd6 {[%emt 0:00:00]} 22. Rh3 {[%emt 0:00:00]} Rag8 {[%emt 0:00:14]} 23. Rf3 {[%emt 0:00:02]} Kc7 {[%emt 0:00:17]} 24. Rc3 {[%emt 0:00:09]} Kb8 {[%emt 0:01:29]} 25. g3 {[%emt 0:00:10]} Rh6 {[%emt 0:00:22]} 26. Nd3 {[%emt 0:00:08]} Nc8 {[%emt 0:00:41]} 27. Nc5 {[%emt 0:00:54][%cal Of3f6] Rxf6! would be deadly.} Rd8 {[%emt 0:00:09]} 28. Rf4 {[%emt 0:01:19]} Nd6 {[%emt 0:00:10]} 29. a4 {[%emt 0:00:06][%cal Ba2a4,Ba4a5][%mdl 32]} Kc7 {[%emt 0:02:13]} 30. b4 {[%emt 0:01:40][%cal Ob4b5]} b6 {[%emt 0:00:37]} 31. Nd3 {[%emt 0:00:06]} Kd7 {[%emt 0:00:15]} 32. Kd1 {[%emt 0:00:09]} Ra8 {[%emt 0:00:11]} 33. a5 {[%emt 0:00:09]} Kc7 {[%emt 0:00:37]} 34. Ra3 {[%emt 0:00:17]} Kb7 {[%emt 0:00:04]} 35. Ke2 {[%emt 0:00:08]} Re8 {[%emt 0:00:11]} 36. Ra2 {[%emt 0:00:20]} Nb5 {[%emt 0:00:08] [#] Hoping for ...Nc3+.} 37. Kf1 {[%emt 0:00:11]} Nd6 {[%emt 0:00:04]} 38. Kg2 {[%emt 0:00:09]} Rg6 {[%emt 0:00:07]} 39. Rf3 {[%emt 0:00:10]} Rh6 {[%emt 0:00:04]} 40. Nf4 {[%emt 0:00:32]} Nb5 {[%emt 0:00:23]} 41. Rc2 {[%emt 0:00:24]} Rd8 {[%emt 0:00:53]} 42. Ne2 {[%emt 0:00:17]} Rc8 {[%emt 0:00:10]} 43. Ra2 {[%emt 0:00:08]} Rd8 {[%emt 0:00:05]} 44. Rf4 {[%emt 0:00:08]} Rc8 {[%emt 0:00:01]} 45. e4 {[%emt 0:00:25]} dxe4 {[%emt 0:00:08]} 46. Rxe4 {[%emt 0:00:01]} Nd6 $2 {[%emt 0:00:14]} (46... Rc7 $16) 47. Re7+ $18 {[%emt 0:00:11]} Rc7 {[%emt 0:00:07]} 48. Rxc7+ {[%emt 0:00:07]} ({Only move:} 48. axb6 $1 $18 Rxe7 49. Rxa7+ (49. bxa7 $2 Ka8 $19) 49... Kxb6 50. Rxe7) 48... Kxc7 {[%emt 0:00:02][%mdl 4096] Endgame KRN-KRN} 49. Nf4 {[%emt 0:00:02]} Nb5 {[%emt 0:00:25]} (49... Nf5 $16 {was called for.}) 50. d5 {[%emt 0:00:08]} cxd5 {[%emt 0:00:01]} 51. Nxd5+ {[%emt 0:00:03]} Kc6 {[%emt 0:00:01]} (51... Kb7 {was necessary.} 52. Ne7 Nd6) 52. axb6 {[%emt 0:00:29]} axb6 {[%emt 0:00:02] [#]} 53. Nf4 {[%emt 0:00:04]} (53. Rd2 $1 $18 {has better winning chances.}) 53... Nd4 $16 {[%emt 0:00:04]} 54. Ra7 {[%emt 0:00:19]} Ne6 {[%emt 0:00:03]} ({Black should try} 54... Nc2 $14) 55. Kf3 {[%emt 0:00:38]} (55. Rxf7 Nxf4+ 56. gxf4 Kb5 $14) 55... Nc7 {[%emt 0:00:38]} 56. Ke4 {[%emt 0:00:07]} Nb5 {[%emt 0:00:02]} 57. Ra1 {[%emt 0:00:19]} (57. Rxf7 $2 {is the wrong capture.} Nd6+ 58. Kd4 Nxf7 $19) 57... Nd6+ {[%emt 0:00:06]} 58. Kd4 {[%emt 0:00:02]} Nf5+ {[%emt 0:00:15]} 59. Kd3 {[%emt 0:00:12]} Rh8 {[%emt 0:00:19]} 60. Ra7 {[%emt 0:00:05]} Nd6 {[%emt 0:00:02]} 61. Re7 {[%emt 0:00:04]} Rh7 {[%emt 0:00:28]} (61... Kb5 $142) 62. Kc3 {[%emt 0:00:06]} Nf5 {[%emt 0:00:05]} 63. Re2 {[%emt 0:00:07]} ({Much less strong is} 63. Ra7 Nd6 64. Re7 Nb5+ 65. Kd3 Kd6 $16) 63... Nd6 {[%emt 0:00:02]} 64. Kb3 {[%emt 0:00:02]} f5 {[%emt 0:00:05]} 65. Rc2+ {[%emt 0:00:03]} Kb7 {[%emt 0:00:22]} 66. Nd5 {[%emt 0:00:01]} Nb5 {[%emt 0:00:08]} (66... Ne8 $142 67. Re2 Nd6 68. Re7+ Kc6) 67. Ka4 $18 {[%emt 0:00:07]} Ka6 $2 {[%emt 0:00:07]} (67... Nd6 {keeps fighting.} 68. Rc7+ Kb8) 68. Rc6 {[%emt 0:00:04] White is clearly winning.} Nd4 {[%emt 0:00:09]} 69. Rxb6+ {[%emt 0:00:02]} Ka7 {[%emt 0:00:00]} 70. Rf6 {[%emt 0:00:00] Weighted Error Value: White=0.12 (very precise) /Black=0.14 (very precise)} 1-0